[Event "7th Porticcio Open 2022"]
[Site "Porticcio"]
[Date "2022.07.08"]
[Round "9.8"]
[White "Tomasi, Albert"]
[Black "Trent, Lawrence"]
[Result "0-1"]
[ECO "B62"]
[WhiteElo "2298"]
[BlackElo "2404"]
[Annotator "RC"]
[PlyCount "148"]
[EventDate "2022.07.02"]
[EventType "swiss"]
[EventCountry "FRA"]
[SourceTitle "playchess.com"]
[Source "ChessBase"]
[SourceQuality "1"]
[TimeControl "5400+30"]

1. e4 {[%emt 0:00:03]} c5 {[%emt 0:00:53]} 2. Nf3 {[%emt 0:00:30]} Nc6 {[%emt 0:00:13]} 3. d4 {[%emt 0:00:09]} cxd4 {[%emt 0:00:37]} 4. Nxd4 {[%emt 0:00:08]} Nf6 {[%emt 0:00:31]} 5. Nc3 {[%emt 0:00:12]} d6 {[%emt 0:00:09]} 6. Bg5 {[%emt 0:00:19]} e6 {[%emt 0:00:05]} 7. f4 {[%emt 0:00:25]} Be7 {[%emt 0:02:25]} 8. Nf3 {[%emt 0:04:23]} h6 {[%emt 0:01:37]} 9. Bh4 {[%emt 0:00:34]} g5 {[%emt 0:00:33]} 10. fxg5 {[%emt 0:01:02]} Ng4 {[%emt 0:00:52]} 11. Qd2 {[%emt 0:02:21]} a6 {[%emt 0:03:04]} 12. O-O-O {[%emt 0:09:34]} Nge5 {[%emt 0:00:10]} 13. Kb1 {[%emt 0:03:08]} hxg5 {[%emt 0:03:00]} 14. Bg3 {[%emt 0:00:32]} Bd7 {[%emt 0:02:52]} 15. Qf2 {[%emt 0:17:20]} Nxf3 {[%emt 0:07:48]} 16. gxf3 {[%emt 0:08:50]} Ne5 {[%emt 0:00:58]} 17. Be2 {[%emt 0:00:24]} Qc7 {[%emt 0:03:05]} 18. h4 {[%emt 0:00:29]} gxh4 {[%emt 0:08:53]} 19. Bxh4 {[%emt 0:00:16]} Qc5 {[%emt 0:00:07]} 20. Qg3 {[%emt 0:04:16]} Bxh4 {[%emt 0:00:50]} 21. Rxh4 {[%emt 0:00:05]} Rxh4 {[%emt 0:01:26]} 22. Qg8+ {[%emt 0:00:36]} Ke7 {[%emt 0:00:00]} 23. Qg5+ Ke8 {[%emt 0:01:48]} 24. Qxh4 {[%emt 0:00:16]} Ng6 {[%emt 0:00:02]} 25. Qh7 {[%emt 0:03:26]} Ke7 {[%emt 0:04:41]} 26. f4 {[%emt 0:04:05]} Bc6 {[%emt 0:05:02]} 27. Bd3 {[%emt 0:08:28]} e5 {[%emt 0:10:11]} 28. fxe5 {[%emt 0:06:34]} Nxe5 {[%emt 0:01:34]} 29. Bf1 {[%emt 0:00:48]} Re8 {[%emt 0:06:44]} 30. Qh6 {[%emt 0:09:35]} Kd7 {[%emt 0:01:59]} 31. a3 {[%emt 0:00:25]} Kc7 {[%emt 0:00:22]} 32. Qf6 {[%emt 0:01:35]} Re6 {[%emt 0:01:58]} 33. Qf4 {[%emt 0:00:13]} Rg6 {[%emt 0:01:47]} 34. Qh4 {[%emt 0:00:40]} Kb8 {[%emt 0:00:45]} 35. Qe1 {[%emt 0:08:44]} Rf6 {[%emt 0:01:53]} 36. Be2 {[%emt 0:01:29]} Rf2 {[%emt 0:01:45]} 37. Bd3 {[%emt 0:02:30]} Rg2 {[%emt 0:03:48]} 38. Qf1 {[%emt 0:02:17]} Rg3 {[%emt 0:00:34]} 39. Qf6 {[%emt 0:00:19]} Rg6 {[%emt 0:01:15]} 40. Qd8+ {[%emt 0:00:16]} Ka7 {[%emt 0:00:01]} 41. Ka2 {[%emt 0:00:32]} Rg2 {[%emt 0:00:48]} 42. Kb1 {[%emt 0:00:28]} Nxd3 {[%emt 0:03:53]} 43. Rxd3 {[%emt 0:00:20]} Bxe4 {[%emt 0:00:05]} 44. b4 {[%emt 0:03:22]} Qg1+ {[%emt 0:00:20]} 45. Rd1 {[%emt 0:00:13]} Bxc2+ {[%emt 0:00:04]} 46. Ka1 {[%emt 0:00:04]} Qb6 {[%emt 0:02:14]} 47. Qxb6+ {[%emt 0:00:28]} Kxb6 {[%emt 0:00:01]} 48. Rxd6+ {[%emt 0:00:08]} Kc7 {[%emt 0:00:18]} 49. Rf6 {[%emt 0:00:06]} Bb3 {[%emt 0:00:11]} 50. b5 {[%emt 0:01:51]} a5 {[%emt 0:00:48]} 51. Ne4 {[%emt 0:00:37]} Rg6 {[%emt 0:02:48]} 52. Rf5 {[%emt 0:00:33]} b6 {[%emt 0:00:56]} 53. Ng5 {[%emt 0:00:29]} Rg7 {[%emt 0:01:24]} 54. Kb2 {[%emt 0:00:18]} a4 {[%emt 0:00:10]} 55. Kc3 {[%emt 0:00:37]} Kd7 {[%emt 0:00:12]} 56. Kd4 {[%emt 0:00:30]} f6 {[%emt 0:01:01]} 57. Ne4 {[%emt 0:00:34]} Rg4 {[%emt 0:00:00]} 58. Rxf6 {[%emt 0:00:26]} Bc2 {[%emt 0:00:10]} 59. Rd6+ {[%emt 0:00:22]} Ke7 {[%emt 0:00:01]} 60. Rxb6 {[%emt 0:00:09]} Rxe4+ {[%emt 0:00:45]} 61. Kd5 {[%emt 0:00:38]} Kd7 {[%emt 0:00:47]} 62. Rd6+ {[%emt 0:00:21]} Ke7 {[%emt 0:00:14]} 63. Rc6 {[%emt 0:00:46]} Re2 {[%emt 0:00:07]} 64. Kc5 {[%emt 0:00:43]} Be4 {[%emt 0:03:52]} 65. Ra6 {[%emt 0:00:33]} Bc2 {[%emt 0:01:27]} 66. Rc6 {[%emt 0:00:34]} Bd3 {[%emt 0:01:18]} 67. Kb6 {[%emt 0:00:29]} Rb2 {[%emt 0:00:54]} 68. Ka5 {[%emt 0:00:19]} Rxb5+ {[%emt 0:00:37]} 69. Kxa4 {[%emt 0:00:05]} Rb8 {[%emt 0:00:12]} 70. Rc3 {[%emt 0:00:54]} Bf5 {[%emt 0:00:21]} 71. Ka5 {[%emt 0:00:43]} Bd7 {[%emt 0:00:04]} 72. Rc4 {[%emt 0:00:28]} Kd6 {[%emt 0:00:23]} 73. Rb4 {[%emt 0:00:26]} Rh8 {[%emt 0:04:50]} 74. Rd4+ {[%emt 0:00:13]} Kc5 {[%emt 0:00:07]} 0-1